bitfinex/quotes_ETHUSD_20240729
["timestamp","ask_amount","ask_price","bid_price","bid_amount"]
[1722226658237,2.69850718,3352.4,3351.8,2.38675]
[1722226658739,2.2569,3352.3,3351.6,9.70689]
[1722226659501,2.38656,3352.2,3351.6,7.32]
[1722226660047,2.2569,3352.3,3351.6,9.70691]
[1722226660198,4.64332,3352.3,3351.6,9.70686]
[1722226660395,2.38651,3352.2,3351.6,9.70686]
[1722226660595,2.38657,3352.1,3351.6,7.32]
[1722226661348,2.38657,3352.1,3351.1,7.32]
[1722226661349,2.2819,3352.1,3351.1,7.32]
[1722226661544,2.2819,3351.3,3351.1,7.32]
[1722226661835,4.66904,3351.3,3350.9,0.00087]
[1722226662041,2.38721,3351.2,3350.9,0.00087]
[1722226662410,2.987511,3351.3,3350.9,0.00087]
[1722226662914,2.2819,3351.3,3350.9,0.00087]
[1722226663107,6.14757479,3352.3,3351.0,2.38734]
[1722226663108,4.66868,3351.8,3351.0,2.38734]
[1722226663315,2.38693,3351.6,3351.0,2.38734]
[1722226663912,4.66868,3351.8,3350.9,0.00087]
[1722226664232,4.66868,3351.8,3351.2,2.38719]
[1722226664434,0.705534,3351.7,3351.2,2.38719]
[1722226665008,2.38656,3352.1,3351.4,2.38701]
[1722226665214,2.4769,3352.2,3351.4,2.38704]
[1722226665410,4.86341,3352.2,3351.5,2.38692]
[1722226665640,2.4769,3352.2,3351.5,2.38692]
[1722226665853,5.64657079,3352.2,3351.5,2.38692]
[1722226666059,2.38656,3352.1,3351.5,2.38692]
[1722226666557,3.26006079,3352.2,3351.5,2.38692]
[1722226666855,3.26006079,3352.2,3351.1,7.32]
[1722226666856,2.4769,3352.2,3351.8,2.38677]
[1722226668520,2.69851718,3352.4,3351.9,2.3867]
[1722226668521,0.31215718,3352.4,3351.9,2.3867]
[1722226668725,0.31215718,3352.4,3351.1,7.32]
[1722226668726,0.31215718,3352.4,3352.0,2.38658]
[1722226669822,0.31215718,3352.4,3352.1,2.38656]
[1722226671164,0.31215718,3352.4,3351.9,2.38665]
[1722226671328,2.69850718,3352.4,3351.7,2.38683]
[1722226671523,0.31215718,3352.4,3351.8,2.38676]
[1722226672370,1.0699419,3352.4,3351.8,2.38676]
[1722226672926,1.0699419,3352.4,3351.9,2.38664]
[1722226673136,0.31215718,3352.4,3351.8,2.38676]
[1722226673386,0.31215718,3352.4,3352.0,2.38662]
[1722226673765,0.31215718,3352.4,3351.8,2.38676]
[1722226673960,2.69850718,3352.4,3351.8,2.38676]
[1722226674146,0.31215718,3352.4,3351.6,7.32]
[1722226674350,2.38646,3352.3,3351.7,2.38684]
[1722226674569,2.38646,3352.3,3351.6,7.32]
[1722226674570,2.38658,3352.1,3351.6,7.32]
[1722226675385,2.38664,3352.0,3351.6,7.32]
[1722226675551,2.3019,3351.9,3351.6,7.32]
[1722226675752,2.38679,3351.8,3351.6,7.32]
[1722226676075,3.094373,3351.7,3351.6,7.32]
[1722226676385,3.094373,3351.7,3351.1,2.38726]
[1722226676588,2.38684,3351.7,3351.1,2.38726]
[1722226676802,2.61409561,3351.9,3351.0,7.32]
[1722226676956,2.38689,3351.7,3351.0,9.70734]
[1722226677155,0.55,3351.6,3351.0,9.70734]
[1722226678497,2.93692,3351.6,3351.0,9.70734]
[1722226678703,2.38699,3351.5,3351.0,7.32]
[1722226679098,2.38706,3351.4,3351.0,7.32]
[1722226679509,0.55,3351.6,3351.0,7.32]
[1722226679663,2.38718,3351.3,3351.0,7.32]
[1722226680080,2.38718,3351.3,3350.6,2.3876]
[1722226680271,2.38734,3351.0,3350.4,0.149768]
[1722226680630,2.93734,3351.0,3350.4,0.149768]
[1722226680772,3.524797,3351.0,3350.4,0.149768]
[1722226681267,2.38723,3351.2,3350.6,2.38762]
[1722226681974,2.38685,3351.7,3350.4,0.149768]
[1722226682291,2.38685,3351.7,3350.9,2.38826]
[1722226682493,2.38685,3351.7,3351.1,2.38722]
[1722226682669,2.38678,3351.8,3351.2,2.3872]
[1722226683071,2.58739561,3351.9,3351.2,2.3872]
[1722226683565,2.58739561,3351.9,3351.2,2.38715]
[1722226683812,2.58739561,3351.9,3351.3,2.38712]
[1722226684110,2.58739561,3351.9,3350.9,0.00087]
[1722226684111,2.38692,3351.6,3350.9,2.38824]
[1722226684315,4.66254,3351.0,3350.9,0.00087]
[1722226684480,7.04988,3351.0,3350.9,0.00087]
[1722226684674,8.304868,3351.0,3350.9,0.00087]
[1722226686317,10.692208,3351.0,3350.9,0.00087]
[1722226687219,8.304868,3351.0,3350.9,0.00087]
[1722226687386,10.692208,3351.0,3350.9,0.00087]
[1722226687714,8.304868,3351.0,3350.9,0.00087]
[1722226690630,10.692208,3351.0,3350.9,0.00087]
[1722226691215,11.00450166,3351.0,3350.9,0.00087]
[1722226691828,16.39184166,3351.0,3350.9,0.00087]
[1722226691992,14.00450166,3351.0,3350.9,0.00087]
[1722226693995,16.39184166,3351.0,3350.9,0.00087]
[1722226694196,14.00450166,3351.0,3350.9,0.00087]
[1722226697641,11.61716166,3351.0,3350.9,0.00087]
[1722226698241,11.06716166,3351.0,3350.9,0.00087]
[1722226698833,2.69963366,3351.0,3350.9,0.00087]
[1722226699031,0.31229366,3351.0,3350.9,2.38828]
[1722226699244,0.31229366,3351.0,3350.9,4.77569]
[1722226699720,0.31229366,3351.0,3350.9,2.38828]
[1722226699988,0.31229366,3351.0,3350.9,4.77569]
[1722226700261,0.31229366,3351.0,3350.9,2.38828]
[1722226700464,0.31229366,3351.0,3350.9,4.77569]
[1722226701666,0.31229366,3351.0,3350.9,2.38828]
[1722226702286,0.31229366,3351.0,3350.9,4.77569]
[1722226702469,4.65867,3352.1,3351.3,2.38706]
[1722226702986,3.28053572,3352.4,3351.1,7.32]
[1722226702987,0.31221555,3351.5,3351.4,4.83379623]
[1722226703122,2.4837,3352.6,3351.1,9.8067]
[1722226703123,2.38633,3352.5,3351.9,2.3867]
[1722226703317,0.31220756,3352.2,3351.9,2.3867]
[1722226703739,0.31220756,3352.2,3351.7,2.38681]
[1722226704181,0.31220756,3352.2,3351.1,9.8067]
[1722226704182,0.31220756,3352.2,3351.8,2.38677]
[1722226704476,0.31220756,3352.2,3351.9,2.38669]
[1722226704633,0.31220756,3352.2,3351.7,2.38684]
[1722226704834,0.31220756,3352.2,3351.5,2.38695]
[1722226705229,0.31220756,3352.2,3351.6,2.38691]
[1722226705650,2.69871756,3352.2,3351.6,2.38691]
[1722226705959,2.69871756,3352.2,3351.4,2.38699]
[1722226706345,2.38656,3352.1,3351.4,2.38699]
[1722226706935,2.38664,3352.0,3351.4,2.38699]
[1722226707340,2.69873756,3352.2,3351.4,2.38699]
[1722226707568,2.69873756,3352.2,3351.2,2.3872]
[1722226707569,2.38662,3352.1,3351.3,2.38708]
[1722226707762,2.38662,3352.1,3351.2,2.3872]
[1722226707933,0.55,3352.0,3351.2,2.3872]
[1722226708262,0.31220756,3352.2,3351.1,7.32]
[1722226708474,0.31220756,3352.2,3351.6,2.38686]
[1722226708841,0.31220756,3352.2,3351.2,2.38719]
[1722226709042,2.38677,3351.9,3351.2,2.38719]
[1722226709241,2.38695,3351.6,3351.1,7.32]
[1722226709879,2.38685,3351.7,3351.1,7.32]
[1722226710040,2.93685,3351.7,3351.1,7.32]
[1722226710248,0.55,3351.7,3351.2,2.38719]
[1722226710773,0.55,3351.7,3351.3,2.38713]
[1722226711188,0.55,3351.7,3351.1,7.32]
[1722226712064,0.55,3351.7,3351.2,2.38719]
[1722226712561,2.38674,3351.9,3351.3,2.38711]
[1722226713046,2.38674,3351.9,3351.2,2.38719]
[1722226713708,2.38678,3351.8,3351.2,2.38719]
[1722226713886,2.38678,3351.8,3351.1,7.32]
[1722226714605,2.38678,3351.8,3351.1,9.70726]
[1722226715412,4.87423,3352.0,3351.3,2.38708]
[1722226716713,4.87423,3352.0,3351.1,9.70726]
[1722226716714,4.87423,3352.0,3351.4,2.38706]
[1722226717067,2.69870756,3352.2,3351.4,2.38706]
[1722226717337,2.69870756,3352.2,3351.6,2.3869]
[1722226717886,2.69870756,3352.2,3351.4,2.38706]
[1722226718125,2.38664,3352.0,3351.4,2.38706]
[1722226718651,2.38679,3351.8,3351.2,2.38718]
[1722226719167,2.38679,3351.8,3351.1,7.32]
[1722226719421,2.69899597,3351.8,3351.1,7.32]
[1722226719568,2.69899597,3351.8,3351.1,9.70726]
[1722226720296,0.31220597,3351.8,3351.3,2.38708]
[1722226721013,0.31220597,3351.8,3351.4,2.38699]
[1722226721915,0.31220597,3351.8,3351.6,2.38688]
[1722226722679,0.31220597,3351.8,3351.4,2.38699]
[1722226723315,0.31220597,3351.8,3351.2,2.38718]
[1722226723524,0.31220597,3351.8,3351.3,2.38712]
[1722226723725,2.69897597,3351.8,3351.1,7.32]
[1722226723873,2.69897597,3351.8,3351.2,2.38718]
[1722226724224,0.31220597,3351.8,3351.3,2.38711]
[1722226724523,2.69898597,3351.8,3351.1,9.70722]
[1722226725010,2.69898597,3351.8,3351.2,2.38719]
[1722226725385,2.69898597,3351.8,3351.3,2.38713]
[1722226725913,0.31220597,3351.8,3351.3,2.38713]
[1722226726248,0.31220597,3351.8,3351.5,2.38697]
[1722226726375,0.31220597,3351.8,3351.3,2.38713]
[1722226726376,0.31220597,3351.8,3351.3,2.38708]
[1722226726781,0.31220597,3351.8,3351.1,9.70726]
[1722226726782,0.31220597,3351.8,3351.5,2.38694]
[1722226726998,0.31220597,3351.8,3351.6,2.3869]
[1722226728072,0.31220597,3351.8,3351.4,2.387]
[1722226729622,0.31220597,3351.8,3351.5,2.38698]
[1722226730014,0.31220597,3351.8,3351.6,2.38689]
[1722226731647,8.00109,3352.8,3351.1,7.32]
[1722226731648,4.69643,3352.7,3352.1,2.38655]
[1722226731949,0.31217905,3352.3,3352.1,2.38655]
[1722226734020,0.31217905,3352.3,3352.0,2.38663]
[1722226734221,0.31217905,3352.3,3351.8,2.38672]
[1722226734422,0.31217905,3352.3,3351.9,2.3867]
[1722226734733,2.8603,3352.2,3351.7,2.38681]
[1722226736062,2.3103,3352.2,3351.5,7.32]
[1722226736759,2.3103,3352.2,3351.8,2.38677]
[1722226739172,2.3103,3352.2,3351.6,2.38691]
[1722226741227,2.3103,3352.2,3351.8,2.38675]
[1722226741532,0.55,3352.1,3351.9,2.38667]
[1722226741733,2.3103,3352.2,3352.1,2.38656]
[1722226742363,0.31217905,3352.3,3352.2,2.38649]
[1722226742937,0.31217905,3352.3,3352.2,4.77298]
[1722226743177,2.4193,3353.1,3352.2,4.77298]
[1722226743354,2.4193,3353.1,3352.3,2.38635]
[1722226743355,2.38593,3353.0,3352.3,2.38635]
[1722226743561,2.38599,3352.9,3352.3,2.38635]
[1722226743804,2.38607,3352.8,3352.1,2.3865]
[1722226744107,2.2795,3352.5,3352.0,2.38661]
[1722226744850,2.2795,3352.5,3352.1,2.38656]
[1722226745297,2.2795,3352.5,3352.2,2.38648]
[1722226746497,2.2795,3352.5,3352.1,2.38656]
[1722226748457,2.2795,3352.5,3351.9,2.3867]
[1722226748458,4.66578,3352.5,3351.9,2.38665]
[1722226750167,2.2795,3352.5,3352.0,2.38662]
[1722226750366,2.2795,3352.5,3352.1,2.38654]
[1722226750580,2.2795,3352.5,3351.9,2.38665]
[1722226750871,2.2795,3352.5,3351.9,2.38664]
[1722226751706,2.2795,3352.5,3352.0,2.38662]
[1722226753003,2.2795,3352.5,3352.1,2.38651]
[1722226754311,2.2795,3352.5,3352.3,2.38641]
[1722226754685,2.2795,3352.5,3352.1,2.38651]
[1722226755401,2.2795,3352.5,3351.9,4.77332]
[1722226755605,2.4851,3352.4,3351.7,2.38681]
[1722226755913,3.0351,3352.4,3351.7,2.38681]
[1722226756570,2.38649,3352.2,3351.7,2.38681]
[1722226756970,2.38649,3352.2,3351.5,9.70696]
[1722226756971,2.3867,3351.9,3351.5,7.32]
[1722226757219,2.351,3351.8,3351.3,2.38712]
[1722226757896,4.7378,3351.8,3351.2,2.38719]
[1722226758820,5.05002722,3351.8,3351.2,2.38719]
[1722226759174,2.38685,3351.7,3351.2,2.38719]
[1722226759375,2.93685,3351.7,3351.1,9.70726]
[1722226759810,0.55,3351.7,3351.2,2.38719]
[1722226760011,2.93685,3351.7,3351.1,9.70726]
[1722226760731,2.93685,3351.7,3351.2,2.3872]
[1722226762990,0.55,3351.7,3351.2,2.3872]
[1722226763232,2.66322722,3351.8,3351.6,2.38691]
[1722226765631,2.66322722,3351.8,3351.4,2.38701]
[1722226765632,2.66322722,3351.8,3351.7,2.38684]
[1722226765824,2.66322722,3351.8,3351.5,2.38692]
[1722226766020,2.66322722,3351.8,3351.6,2.38691]
[1722226766422,2.66322722,3351.8,3351.4,2.38703]
[1722226766600,2.66322722,3351.8,3351.5,2.38698]
[1722226766799,2.66322722,3351.8,3351.6,2.38687]
[1722226767537,2.66322722,3351.8,3351.3,2.38713]
[1722226767736,2.66322722,3351.8,3351.2,2.38717]
[1722226770202,5.05005722,3351.8,3351.2,2.38717]
[1722226772537,0.31222722,3351.8,3351.2,2.38717]
[1722226772841,0.31222722,3351.8,3351.4,2.38701]
[1722226773943,0.31222722,3351.8,3351.1,7.32]
[1722226774145,2.3305,3352.6,3352.0,2.38658]
[1722226774440,0.3121868,3352.3,3352.0,2.38658]
[1722226774804,0.3121868,3352.3,3351.8,2.38673]
[1722226775039,0.3121868,3352.3,3351.7,7.32]
[1722226775239,2.3405,3352.2,3351.7,9.70684]
[1722226775543,2.3405,3352.2,3351.7,7.32]
[1722226775835,2.3405,3352.2,3351.7,9.70684]
[1722226775836,4.727,3352.2,3351.7,9.70684]
[1722226776038,2.3405,3352.2,3351.7,9.70684]
[1722226779211,2.3405,3352.2,3351.9,2.38666]
[1722226779469,2.3405,3352.2,3351.9,2.38668]
[1722226780049,0.3121868,3352.3,3351.9,2.38668]
[1722226780253,0.3121868,3352.3,3352.1,2.38656]
[1722226780457,0.3121868,3352.3,3351.9,2.38668]
[1722226781422,0.3121868,3352.3,3352.0,2.3866]
[1722226781714,0.3121868,3352.3,3351.8,2.38672]
[1722226782050,0.3121868,3352.3,3351.9,2.3867]
[1722226782762,0.3121868,3352.3,3352.0,2.38662]
[1722226783717,0.3121868,3352.3,3351.9,2.3867]
[1722226784463,2.401,3352.2,3351.7,9.70682]
[1722226784817,2.401,3352.1,3351.7,7.32]
[1722226785072,2.38675,3351.9,3351.7,7.32]
[1722226785270,2.38675,3351.9,3351.3,10.44476175]
[1722226785271,2.4201,3351.7,3351.2,9.70715]
[1722226785478,2.4201,3351.7,3351.2,7.32]
[1722226786035,2.4201,3351.7,3351.2,9.70718]
[1722226786457,2.9701,3352.0,3351.2,7.32]
[1722226786642,2.9701,3352.0,3351.5,2.38692]
[1722226786854,2.9701,3352.0,3351.6,2.3869]
[1722226787044,2.4201,3352.0,3351.8,2.38673]
[1722226787249,2.4201,3352.0,3351.9,2.3867]
[1722226787564,2.4201,3352.0,3351.5,2.38698]
[1722226787870,2.4201,3352.0,3351.7,2.3868]
[1722226789196,2.4201,3352.0,3351.9,2.3867]
[1722226789534,2.4201,3352.0,3351.9,2.088689]
[1722226790675,2.4201,3352.0,3351.9,4.475389]
[1722226790856,2.4201,3352.0,3351.7,2.38679]
[1722226791179,2.4201,3352.0,3351.8,2.38677]
[1722226791691,2.4201,3352.0,3351.7,2.38683]
[1722226791987,2.4201,3352.0,3351.9,2.3867]
[1722226792367,2.7256868,3352.3,3351.9,2.3867]
[1722226792574,2.7256868,3352.3,3352.1,2.38651]
[1722226792879,0.55,3352.2,3351.9,2.3867]
[1722226793574,0.55,3352.2,3352.0,2.38662]
[1722226795043,0.55,3352.2,3352.1,2.38656]
[1722226795445,0.55,3352.2,3351.2,7.32]
[1722226795446,2.7256868,3352.3,3352.2,2.38649]
[1722226796587,2.7256868,3352.3,3352.0,2.38656]
[1722226801962,2.4135,3352.3,3352.0,2.38656]
[1722226802460,2.4135,3352.3,3351.7,2.38677]
[1722226802461,2.4135,3352.3,3351.8,2.38671]
[1722226802795,2.4135,3352.3,3351.9,2.38669]
[1722226803180,2.4135,3352.3,3352.0,2.38663]
[1722226804366,2.4135,3352.3,3352.0,2.38657]
[1722226805713,2.3285,3353.1,3352.5,2.38623]
[1722226806002,2.8785,3353.1,3352.5,2.38623]
[1722226806214,2.3285,3353.1,3352.5,2.38623]
[1722226806712,2.3285,3353.1,3352.9,2.38597]
[1722226808072,2.3285,3353.1,3352.7,2.38609]
[1722226808073,0.55,3353.0,3352.7,2.38609]
[1722226809402,0.55,3353.0,3352.9,2.38599]
[1722226809601,0.55,3353.0,3352.7,2.38609]
[1722226809924,2.3285,3353.1,3352.9,2.38599]
[1722226810251,2.64062737,3353.1,3352.9,2.38599]
[1722226811293,2.64062737,3353.1,3353.0,2.38592]
[1722226811543,0.31212737,3353.1,3353.0,2.38592]
[1722226811740,0.31212737,3353.1,3352.9,2.38599]
[1722226811897,0.31212737,3353.1,3352.7,2.38612]
[1722226812231,0.31212737,3353.1,3353.0,2.38592]
[1722226813118,0.31212737,3353.1,3352.9,2.38594]
[1722226813434,0.31212737,3353.1,3353.0,2.38592]
[1722226813659,0.31212737,3353.1,3352.3,2.38641]
[1722226813791,0.31212737,3353.1,3352.1,0.2994]
[1722226813792,3.0432,3353.0,3352.7,2.38609]
[1722226813997,3.61730374,3353.0,3352.8,2.38606]
[1722226814229,3.0432,3353.0,3352.9,2.38599]
[1722226814433,2.4932,3353.0,3352.9,2.38599]
[1722226815321,0.31212737,3353.1,3353.0,2.38592]
[1722226816022,0.31212737,3353.1,3353.0,4.77184]
[1722226817315,2.2738,3353.8,3353.5,2.38555]
[1722226817504,0.31207411,3353.6,3353.5,2.38555]
[1722226818444,0.31207411,3353.6,3353.5,4.77111]
[1722226820240,4.7526,3354.6,3354.0,2.38516]
[1722226820444,0.3120341,3354.3,3354.0,2.38516]
[1722226820742,0.81849751,3354.3,3354.1,2.38513]
[1722226821253,4.7388,3355.9,3355.0,2.38444]
[1722226821449,2.38405,3355.7,3354.9,2.38455]
[1722226821752,2.38405,3355.7,3354.3,2.38495]
[1722226821753,0.31196159,3355.5,3354.3,2.38495]
[1722226821961,0.31196159,3355.5,3354.0,3.2994]
[1722226821962,0.31196159,3355.5,3354.9,2.38452]
[1722226822278,5.04353516,3355.4,3354.5,2.38483]
[1722226822415,2.38442,3355.2,3354.5,2.38483]
[1722226822609,4.77393,3355.4,3354.4,2.38492]
[1722226822878,2.3844,3355.2,3354.5,2.38485]
[1722226823028,2.3844,3355.2,3354.3,2.38499]
[1722226823029,2.38451,3355.0,3354.3,2.38499]
[1722226823232,2.38451,3355.0,3353.6,2.38543]
[1722226823233,2.3897,3354.8,3354.1,2.38512]
[1722226823780,2.3897,3354.8,3354.4,2.38491]
[1722226824168,0.55,3354.7,3354.4,2.38491]
[1722226824699,0.55,3354.7,3354.1,2.38513]
[1722226824876,1.1301101,3354.7,3354.1,2.38513]
[1722226825662,3.5148401,3354.7,3353.9,2.38528]
[1722226825879,3.5148401,3354.7,3353.9,2.38523]
[1722226826096,3.5148401,3354.7,3354.1,2.38509]
[1722226826666,2.38478,3354.6,3353.9,2.38523]
[1722226826863,0.55,3354.5,3353.9,2.38523]
[1722226827088,0.55,3354.5,3354.0,2.3852]
[1722226827291,0.55,3354.5,3353.7,2.38541]
[1722226827500,0.55,3354.5,3353.2,0.2994]
[1722226827501,0.55,3354.5,3353.8,2.38534]
[1722226827683,0.3525234,3354.4,3353.8,2.38534]
[1722226828105,0.3525234,3354.4,3353.9,2.38526]
[1722226828307,0.3525234,3354.4,3353.6,2.38547]
[1722226828916,0.3525234,3354.4,3353.7,2.38542]
[1722226828917,2.328,3354.3,3353.7,2.38542]
[1722226829123,2.328,3354.3,3353.5,7.32]
[1722226829124,2.38521,3354.0,3353.5,7.32]
[1722226829423,2.38514,3354.1,3353.5,2.38556]
[1722226829594,2.93514,3354.1,3353.5,2.38556]
[1722226829797,0.63746853,3354.0,3353.5,2.38556]
[1722226829977,0.55,3353.9,3353.4,2.38563]
[1722226830381,0.55,3353.9,3353.2,10.44476175]
[1722226830634,2.4575,3353.8,3353.2,10.44476175]
[1722226830843,2.38549,3353.7,3353.2,10.44476175]
[1722226830980,1.089299,3353.6,3353.1,7.32]
[1722226831333,2.4575,3353.5,3353.1,7.32]
[1722226831498,4.77156,3353.2,3353.1,7.32]
[1722226831705,2.38596,3353.0,3352.5,10.44476175]
[1722226832102,2.38578,3353.2,3352.5,10.44476175]
[1722226832425,0.55,3353.1,3352.5,12.83099175]
[1722226832627,2.38573,3353.3,3352.5,12.83099175]
[1722226832628,0.55,3353.2,3352.5,12.83099175]
[1722226832926,0.55,3353.2,3352.8,2.38605]
[1722226833100,2.38571,3353.3,3352.6,2.38615]
[1722226833300,0.55,3353.2,3352.6,2.38615]
[1722226833801,0.55,3353.3,3352.5,12.83099175]
[1722226834149,0.55,3353.3,3352.7,2.38612]
[1722226834329,1.38017985,3353.3,3352.7,2.38612]
[1722226835373,3.76588985,3353.3,3352.7,2.38612]
[1722226836353,3.76588985,3353.3,3352.5,12.83099175]
[1722226836354,2.38585,3353.1,3352.5,12.83099175]
[1722226836527,2.93593,3353.0,3352.5,10.44476175]
[1722226836727,0.8620799,3353.0,3352.4,9.70632]
[1722226836929,0.8620799,3353.0,3352.4,2.38632]
[1722226837569,2.38604,3352.9,3352.3,2.38642]
[1722226839068,2.3014,3352.8,3352.3,2.38642]
[1722226839218,4.68748,3352.8,3352.1,9.70651]
[1722226839420,2.38614,3352.7,3352.1,9.70651]
[1722226839651,2.93614,3352.7,3352.1,9.70651]
[1722226839855,2.38621,3352.6,3352.1,7.32]
[1722226840062,2.38632,3352.5,3352.1,7.32]
[1722226841335,0.55,3352.7,3352.1,9.7065]
[1722226841693,0.3120799,3353.0,3352.1,7.32]
[1722226841818,0.3120799,3353.0,3352.6,2.3862]
[1722226842365,0.3120799,3353.0,3352.8,2.38602]
[1722226842529,0.3120799,3353.0,3352.9,2.38599]
[1722226843437,0.3120799,3353.0,3352.7,2.3861]
[1722226843836,0.3120799,3353.0,3352.8,2.38605]
[1722226844037,0.3120799,3353.0,3352.9,2.38599]
[1722226844966,0.3120799,3353.0,3352.9,4.77198]
[1722226845120,2.3915,3353.7,3352.6,2.38617]
[1722226845323,0.3120395,3353.6,3353.3,2.3857]
[1722226845522,0.3120395,3353.6,3353.5,4.77112]
[1722226845767,2.3915,3354.2,3353.5,2.38556]
[1722226845922,0.31201655,3354.1,3353.5,2.38556]
[1722226846121,0.31201655,3354.1,3352.3,5.615]
[1722226846122,2.38533,3353.9,3353.1,2.38582]
[1722226846323,0.31201655,3354.1,3352.3,5.2946]
[1722226846324,2.38557,3353.5,3353.0,2.38592]
[1722226846563,2.408,3353.6,3353.0,2.38592]
[1722226846781,2.6488,3353.6,3352.3,3.0]
[1722226846933,2.408,3353.6,3353.2,2.38577]
[1722226847123,2.408,3353.6,3353.0,4.77177]
[1722226847324,2.408,3353.6,3353.0,2.38587]
[1722226847566,2.408,3353.6,3353.2,2.38577]
[1722226847767,2.408,3353.6,3353.3,2.3857]
[1722226847978,2.2936,3354.0,3353.5,2.38552]
[1722226848389,2.2936,3354.0,3353.6,2.38548]
[1722226848689,0.31201655,3354.1,3353.1,2.38583]
[1722226848908,0.31201655,3354.1,3353.7,2.38536]
[1722226849542,0.31201655,3354.1,3353.7,2.38538]
[1722226849740,0.31201655,3354.1,3353.5,2.38551]
[1722226850243,2.38528,3353.9,3353.3,2.38568]
[1722226850870,2.38528,3353.9,3353.4,2.38563]
[1722226851294,2.94852365,3353.9,3353.4,2.38563]
[1722226851797,2.38535,3353.8,3353.2,2.38572]
[1722226851945,2.4161,3353.7,3353.2,2.38572]
[1722226852369,2.38555,3353.6,3353.0,2.38592]
[1722226852644,4.80157,3353.7,3353.0,2.38592]
[1722226852839,0.53648137,3353.6,3353.0,2.38592]
[1722226853092,2.92197137,3353.6,3353.0,2.38592]
[1722226857014,2.92197137,3353.6,3352.6,7.32]
[1722226857015,2.3146,3353.5,3352.6,9.70616]
[1722226857172,2.8646,3353.5,3352.6,9.70616]
[1722226857372,2.38579,3353.2,3352.6,9.70616]
[1722226857573,2.38579,3353.2,3352.6,2.38616]
[1722226857795,2.38591,3353.1,3352.4,2.38634]
[1722226858007,2.38591,3353.1,3352.5,2.38626]
[1722226858008,2.3542,3353.0,3352.5,2.38626]
[1722226858505,4.74012,3353.0,3352.2,9.70647]
[1722226858706,2.38607,3352.8,3352.2,9.70647]
[1722226859399,0.23542,3352.9,3352.2,9.70647]
[1722226859400,0.23542,3352.9,3352.3,2.38641]
[1722226859600,0.55,3352.8,3352.3,2.38641]
[1722226860471,0.55,3352.8,3352.5,2.38627]
[1722226860672,0.55,3352.9,3352.5,2.38627]
[1722226860874,2.72575814,3353.4,3352.6,0.05965496]
[1722226860875,2.3409,3353.4,3352.6,0.05965496]
[1722226861114,2.3409,3353.4,3353.3,2.3857]
[1722226861615,0.31203137,3353.5,3353.4,2.38563]
[1722226861822,0.31203137,3353.5,3353.4,4.77126]
[1722226862244,2.3409,3354.3,3354.0,2.38517]
[1722226862381,2.65289197,3354.3,3354.0,2.38517]
[1722226863025,2.65289197,3354.3,3354.2,2.38506]
[1722226863331,2.4903,3354.8,3354.3,2.38496]
[1722226863490,0.31199128,3354.7,3354.5,2.38484]
[1722226863688,0.31199128,3354.7,3354.3,4.76989]
[1722226864011,0.31199128,3354.7,3354.3,2.38493]
[1722226864614,0.83067741,3354.7,3354.2,2.38506]
[1722226864813,0.83067741,3354.7,3354.3,2.38499]
[1722226865011,0.31199128,3354.7,3354.5,2.38485]
[1722226865207,0.31199128,3354.7,3354.6,2.38478]
[1722226865853,0.31199128,3354.7,3354.3,2.38497]
[1722226866035,0.31199128,3354.7,3353.8,2.38531]
[1722226866233,0.31199128,3354.7,3354.6,2.38478]
[1722226866534,0.31199128,3354.7,3354.4,2.38492]
[1722226867454,0.31199128,3354.7,3354.5,2.38484]
[1722226868717,0.31199128,3354.7,3354.6,2.38478]
[1722226869480,2.3489,3355.2,3354.7,2.38469]
[1722226869682,0.311943,3355.3,3355.1,2.38442]
[1722226870875,0.311943,3355.3,3355.2,2.38435]
[1722226871180,0.311943,3355.3,3354.8,2.38462]
[1722226871350,0.311943,3355.3,3355.0,2.38445]
[1722226871546,0.311943,3355.3,3355.1,2.38437]
[1722226871764,0.311943,3355.3,3355.0,2.38445]
[1722226872175,0.311943,3355.3,3355.1,2.38441]
[1722226872485,0.311943,3355.3,3355.2,2.38435]
[1722226872983,2.2972,3355.2,3354.6,2.38473]
[1722226873194,0.2609143,3355.1,3354.6,2.38473]
[1722226874448,2.6453443,3355.1,3354.4,2.38488]
[1722226876777,2.6453443,3355.1,3354.2,2.38504]
[1722226876778,2.6453443,3355.1,3354.5,2.38485]
[1722226877793,0.2609143,3355.1,3354.1,2.38512]
[1722226877982,0.55,3355.0,3354.0,7.32]
[1722226878181,0.55,3355.0,3354.5,2.38485]
[1722226878497,0.55,3355.0,3354.5,2.38484]
[1722226878661,0.2609143,3355.1,3354.5,2.38484]
[1722226880719,0.2609143,3355.1,3354.7,2.38469]
[1722226881024,2.2972,3355.2,3354.7,2.38469]
[1722226881228,0.55,3355.1,3354.7,2.38469]
[1722226882316,0.55,3355.1,3354.8,2.38458]
[1722226882591,2.2972,3355.2,3354.8,2.38458]
[1722226884457,2.2972,3355.2,3354.6,4.76951]
[1722226884638,2.2972,3355.2,3354.6,2.38473]
[1722226885001,2.2972,3355.2,3354.7,2.38471]
[1722226887213,2.38448,3355.1,3354.4,7.32]
[1722226887546,0.55,3355.1,3354.5,2.38485]
[1722226888313,0.55,3355.1,3354.6,2.38477]
[1722226888515,0.55,3355.1,3354.8,2.38462]
[1722226889469,2.2972,3355.2,3355.0,2.38448]
[1722226889826,0.311943,3355.3,3355.1,2.38442]
[1722226893869,0.311943,3355.3,3355.2,2.38435]
[1722226894675,0.311943,3355.3,3355.0,2.38444]
[1722226894976,0.311943,3355.3,3354.7,2.38468]
[1722226895143,0.55,3355.2,3354.8,2.38464]